Workbook

Sheet Berechnungshilfe
B1: Berechnung Verbund-Index GP-RS Schlauchliner | M1: Aktuelle Daten 2022
B2: GP-Nummer | C2: Faktor | D2: Produktart | E2: Beschreibung laut Statistik | F2: Indexwert Versand der Angebotsunterlagen*** | G2: Indexwert Angebotseröffnung | H2: Indexwert Abrechnung | M2: GP2009 (ausgewählte 9-Steller): Gewerbl. Produkte | O2: Januar | P2: Februar | Q2: März | R2: April | S2: Mai | T2: Juni
A3: GP-RS 1 | B3: GP 09-2016406201* | C3: 0.15 | D3: Nadelfilzliner EP -Trägermaterial | E3: Polyethylenterephtalat, in Primärformen | M3: GP09-201325700 | N3: Aluminiumhydroxid (t-Al2O3) | O3: 116 | P3: 122.4 | Q3: 122.4 | R3: 122.7 | S3: 123.2 | T3: 123.2
B4: GP 09-201640308 * | C4: 0.85 | D4: Nadelfilzliner EP - Harz | E4: Epoxidharze, in anderen Primärformen | I4: Basiswert 1*** | J4: Basiswert 2 | K4: Basiswert 3 | M4: GP09-201640308 | N4: Epoxidharze, in anderen Primärformen | O4: 147.9 | P4: 148 | Q4: 148.3 | R4: 161.9 | S4: 163 | T4: 163
B5: GP-RS 1 (Nadelfilzliner, EP) | F5: =$C3*F3+($C4*F4) -> 0 | G5: =$C3*G3+($C4*G4) -> 0 | H5: 0 | J5: =I5*(G5/F5) ->  | K5: =J5*H5/G5 ->  | M5: GP09-2016406201 | N5: Polyethylenterephtalat, in Primärformen | O5: 120 | P5: 126.5 | Q5: 133.9 | R5: 138 | S5: 146.4 | T5: 152.1
A7: GP-RS 2 | B7: GP-Nummer | C7: Faktor | D7: Produktart | E7: Beschreibung laut Statistik | F7: Indexwert Versand der Angebotsunterlagen*** | G7: Indexwert Angebotseröffnung | H7: Indexwert Abrechnung | M7: GP09-201640900 | N7: Andere Polyester, in Primärformen | O7: 117.4 | P7: 118.8 | Q7: 120.7 | R7: 129.2 | S7: 131.2 | T7: 135.2
B8: GP 09-2016406201 * | C8: 0.15 | D8: Nadelfilzliner UP - Trägermaterial | E8: Polyethylenterephtalat, in Primärformen | M8: GP09-23141 | N8: Glasfasern (einschl. Glaswolle), Waren daraus | O8: 112.5 | P8: 113.2 | Q8: 116.1 | R8: 131.1 | S8: 122.2 | T8: 127.5
B9: GP 09-201325700 * | C9: 0.2 | D9: Nadelfilzliner UP - Füllstoff | E9: Aluminiumhydroxid (t-Al2O3)
B10: GP 09-201640900 * | C10: 0.65 | D10: Nadelfilzliner UP - Harz | E10: Andere Polyester, in Primärformen | I10: Basiswert 1*** | J10: Basiswert 2 | K10: Basiswert 3
B11: GP-RS 2 (Nadelfilzliner, UP) | F11: =$C8*F8+$C9*F9+$C10*F10 -> 0 | G11: =$C8*G8+$C9*G9+$C10*G10 -> 0 | H11: 0 | J11: =I11*(G11/F11) ->  | K11: =J11*H11/G11 -> 
A13: GP-RS 3 | B13: GP-Nummer | C13: Faktor | D13: Produktart | E13: Beschreibung laut Statistik | F13: Indexwert Versand der Angebotsunterlagen*** | G13: Indexwert Angebotseröffnung | H13: Indexwert Abrechnung
B14: GP 09-201640900 * | C14: 0.5 | D14: Glasfaserliner - Harz | E14: Andere Polyester, in Primärformen
B15: GP 09-23141** | C15: 0.5 | D15: Glasfaserliner - Glas | E15: Glasfasern (einschl. Glaswolle), Waren daraus | I15: Basiswert 1*** | J15: Basiswert 2 | K15: Basiswert 3
B16: GP-RS 3 (Glasfaserliner, UP) | F16: =$C14*F14+$C15*F15 -> 0 | G16: =$C14*G14+$C15*G15 -> 0 | H16: 0 | J16: =I16*(G16/F16) ->  | K16: =J16*H16/G16 -> 
B18: GP-Nummer | D18: Produktart | E18: Beschreibung laut Statistik | F18: Indexwert Versand der Angebotsunterlagen*** | G18: Indexwert Angebotseröffnung | H18: Indexwert Abrechnung | I18: Basiswert 1*** | J18: Basiswert 2 | K18: Basiswert 3 | M18: GP-RS Index | N18: Aktuelle Daten 2022 | O18: Januar | P18: Februar | Q18: März | R18: April | S18: Mai | T18: Juni
A19: GP-RS | B19: GP-RS 0 (Schlauchliner allgemein) | D19: Schlauchliner gesamt (Produktoffen) | F19: =AVERAGE(F5,F11,F16) -> 0 | G19: =AVERAGE(G5,G11,G16) -> 0 | H19: =AVERAGE(H5,H11,H16) -> 0 | J19: =I19*(G19/#REF!) ->  | K19: =J19*H19/G19 ->  | M19: GP-RS 1 Index Nadelfilzliner EP | N19: GP-RS 1 Index Nadelfilzliner EP | O19: =$C3*O5+($C4*O4) -> 143.715 | P19: =$C3*P5+($C4*P4) -> 144.775 | Q19: 146.14 | R19: 158.315 | S19: 160.51 | T19: =$C3*T5+($C4*T4) -> 161.365
M20: GP-RS 2 Index Nadelfilzliner UP | N20: GP-RS 2 Index Nadelfilzliner UP | O20: =$C8*O5+$C9*O3+$C10*O7 -> 117.51 | P20: =$C8*P5+$C9*P3+$C10*P7 -> 120.675 | Q20: 123.02 | R20: 129.22 | S20: 131.88 | T20: =$C8*T5+$C9*T3+$C10*T7 -> 135.335
M21: GP-RS 3 Index Glasfaserliner UP | N21: GP-RS 3 Index Glasfaserliner UP | O21: =$C14*O7+$C15*O8 -> 114.95 | P21: =$C14*P7+$C15*P8 -> 116 | Q21: 118.4 | R21: 130.15 | S21: 126.7 | T21: =$C14*T7+$C15*T8 -> 131.35
M22: GP-RS 0 Schlauchliner gesamt | N22: GP-RS 0 Schlauchliner gesamt | O22: =AVERAGE(O19:O21) -> 125.3916667 | P22: 127.15 | Q22: 129.1866667 | R22: 139.2283333 | S22: 139.6966667 | T22: 142.6833333
M23: Entwicklung GP-RS 0 zum Vormonat | N23: Entwicklung GP-RS 0 zum Vormonat | O23: 0.02 | P23: =(P22-O22)/O22 -> 0.01402272878 | Q23: =(Q22-P22)/P22 -> 0.01601782671 | R23: =(R22-Q22)/Q22 -> 0.07772989989 | S23: =(S22-R22)/R22 -> 0.003363778924 | T23: =(T22-S22)/S22 -> 0.02137965592
M24: Entwicklung GP-RS-0 zum Vorjahresmonat | N24: Entwicklung GP-RS-0 zum Vorjahresmonat | O24: 0.2689323663 | P24: 0.2646498135 | Q24: 0.2658947265 | R24: 0.2477706911 | S24: 0.2346330039 | T24: 0.2405628251

Sheet Hinweise
A2: Anleitung zu Indexerten
A3: Tragen Sie die Indexwerte des jeweiligen Monats in die farbig markierten und umrandeten Tabellenspalten ein (ggf. mit = direkt Bezug herstellen. Tragen Sie den Basiswert 1 in das weiße Feld daneben ein. Bei Verwendung des Formulars 225a ist hier der Wert in Euro einzutragen, der vom Bieter angegeben ist.
A4: https://www-genesis.destatis.de/genesis//online?operation=table&code=61241-0004&bypass=true&levelindex=1&levelid=1651493663931#abreadcrumb
A5: Geben Sie Monat, Jahr und gewünschte Tabelle ein:
A6: *ausgewählte 9-Steller, Sonderpostionen
A7: **5-Steller
A9: ***Entfällt bei Verwendung des Formblatts 225a. Als Basiswert 2 ist der Preis aus dem bezuschlagten Angebot anzugeben
